fUST/lending_fUST_20240225
["ID","MTS","AMOUNT","RATE_DAILY","PERIOD"]
[315100299,1708816241639,-1306.34,0.00019833,2]
[315100300,1708816241648,-500.0,0.00019833,2]
[315100301,1708816241657,-500.0,0.00019833,2]
[315100302,1708816241667,-1367.08,0.00019833,2]
[315100303,1708816241676,-500.0,0.00019833,2]
[315100304,1708816241685,-1095.53,0.00019833,2]
[315100305,1708816241694,-500.80808631,0.00019833,2]
[315100306,1708816241703,-4372.98,0.00019833,2]
[315100307,1708816241712,-1709.45,0.00019833,2]
[315100308,1708816241721,-500.0,0.00019833,2]
[315100309,1708816241730,-863.56,0.00019833,2]
[315100310,1708816241739,-500.0,0.00019834,2]
[315100311,1708816241749,-500.0,0.00019834,2]
[315100312,1708816241758,-500.0,0.00019834,2]
[315100313,1708816241768,-477.56579186,0.00019834,2]
[315100314,1708816241777,-500.0,0.00019834,2]
[315100315,1708816241786,-500.0,0.00019834,2]
[315100316,1708816241795,-198.51434703,0.00019834,2]
[315100317,1708816241804,-500.0,0.00019834,2]
[315100318,1708816241813,-500.0,0.00019834,2]
[315100319,1708816241823,-500.56299601,0.00019834,2]
[315100320,1708816241832,-500.0,0.00019834,2]
[315100321,1708816241841,-500.0,0.00019834,2]
[315100322,1708816241850,-500.0,0.00019834,2]
[315100323,1708816241860,-500.0,0.00019834,2]
[315100324,1708816241869,-41133.41772646,0.0001985,2]
[315100325,1708816241878,-433.63696773,0.00019858,2]
[315100326,1708816241888,-306.0,0.00019863,2]
[315100327,1708816241898,-685.88,0.00019897,2]
[315100328,1708816241908,-500.0,0.00019898,2]
[315100329,1708816241917,-500.0,0.00019898,2]
[315100330,1708816241927,-500.0,0.00019899,2]
[315100331,1708816241936,-279.3313356,0.00019899,2]
[315100332,1708816241945,-500.0,0.00019899,2]
[315100333,1708816241955,-500.0,0.00019899,2]
[315100334,1708816241965,-500.0,0.00019899,2]
[315100335,1708816241974,-999.35260013,0.00019899,2]
[315100336,1708816241984,-1518.48968101,0.00019899,2]
[315100337,1708816241994,-685.88,0.00019899,2]
[315100338,1708816242003,-685.88,0.00019899,2]
[315100339,1708816242012,-72476.59984587,0.000199,2]
[315100340,1708816242022,-433.63696773,0.000199,2]
[315100341,1708816242031,-20934.36429894,0.000199,2]
[315100342,1708816242040,-273.7273831,0.00019998,2]
[315100343,1708816242049,-685.88,0.00019998,2]
[315100344,1708816242058,-155.10941439,0.00019999,2]
[315100345,1708816242068,-500.0,0.00019999,2]
[315100346,1708816242078,-500.0,0.00019999,2]
[315100347,1708816242087,-500.0,0.00019999,2]
[315100348,1708816242096,-175.95696323,0.00019999,2]
[315100349,1708816242106,-685.88,0.00019999,2]
[315100350,1708816242115,-685.88,0.00019999,2]
[315100351,1708816242124,-685.88,0.00019999,2]
[315100352,1708816242133,-685.88,0.00019999,2]
[315100353,1708816242142,-685.88,0.00019999,2]
[315100354,1708816242152,-685.88,0.00019999,2]
[315100355,1708816242161,-685.88,0.00019999,2]
[315100356,1708816242169,-685.88,0.00019999,2]
[315100357,1708816242178,-685.88,0.00019999,2]
[315100358,1708816242278,-685.88,0.00019999,2]
[315100359,1708816242288,-685.88,0.00019999,2]
[315100360,1708816242296,-685.88,0.00019999,2]
[315100361,1708816242305,-685.88,0.00019999,2]
[315100362,1708816242314,-685.88,0.00019999,2]
[315100363,1708816242323,-685.88,0.00019999,2]
[315100364,1708816242332,-685.88,0.00019999,2]
[315100365,1708816242341,-686.10920829,0.00019999,2]
[315100366,1708816242350,-354.1976007,0.00019999,2]
[315100367,1708816242359,-188.10839072,0.00019999,2]
[315100368,1708816242368,-724355.16718959,0.0002,2]
[315100369,1708816242387,-1158.95653593,0.0002,2]
[315100370,1708816242430,-711.4459985,0.0002,2]
[315100397,1708817232138,-461.11292181,0.00018355,2]
[315100399,1708817358093,-295.56467022,0.00018255,2]
[315100400,1708817358114,-2716.22441252,0.00018255,2]
[315100401,1708817358138,-163.38875591,0.00018256,2]
[315100402,1708817358158,-743.86286849,0.00018365,2]
[315100403,1708817358179,-4755.1611115,0.00018366,2]
[315100404,1708817358199,-311.3848696,0.00018366,2]
[315100405,1708817358218,-218.42026723,0.000189,2]
[315100406,1708817358238,-44.06125343,0.00019178,2]
[315100488,1708817438525,-743.86286849,0.00018899,2]
[315100489,1708817438536,-295.56467022,0.00018899,2]
[315100491,1708817438545,-150.0,0.000189,2]
[315100492,1708817438555,-166.666666,0.00019178,2]
[315100493,1708817438564,-1321.3,0.00019547,3]
[315100494,1708817438574,-2271.79,0.00019547,3]
[315100495,1708817438583,-1893.16,0.00019547,3]
[315100496,1708817438591,-500.0,0.00019556,2]
[315100497,1708817438600,-500.0,0.00019556,2]
[315100498,1708817438609,-500.0,0.00019556,2]
[315100499,1708817438618,-500.0,0.00019556,2]
[315100500,1708817438627,-500.0,0.00019556,2]
[315100501,1708817438742,-613.60232286,0.00019556,2]
[315100502,1708817438751,-500.0,0.00019556,2]
[315100503,1708817438760,-500.65626971,0.00019556,2]
[315100504,1708817438769,-500.0,0.00019556,2]
[315100505,1708817438779,-500.0,0.00019556,2]
[315100506,1708817438788,-500.0,0.00019556,2]
[315100507,1708817438797,-500.0,0.00019556,2]
[315100508,1708817438806,-500.0,0.00019556,2]
[315100509,1708817438815,-500.0,0.00019556,2]
[315100510,1708817438824,-500.0,0.00019556,2]
[315100511,1708817438833,-500.0,0.00019556,2]
[315100512,1708817438842,-500.0,0.00019556,2]
[315100513,1708817438851,-750.99,0.00019556,2]
[315100514,1708817438860,-500.47459778,0.00019556,2]
[315100515,1708817438869,-500.0,0.00019556,2]
[315100516,1708817438878,-651.18,0.00019556,2]
[315100517,1708817438889,-500.0,0.00019556,2]
[315100518,1708817438899,-500.0,0.00019556,2]
[315100519,1708817438908,-4855.68,0.00019556,2]
[315100520,1708817438918,-500.0,0.00019556,2]
[315100521,1708817438929,-500.0,0.00019556,2]
[315100522,1708817438938,-500.0,0.00019556,2]
[315100523,1708817438947,-5097.37,0.00019556,2]
[315100524,1708817438956,-500.0,0.00019556,2]
[315100525,1708817438965,-500.0,0.00019556,2]
[315100526,1708817438975,-500.0,0.00019556,2]
[315100527,1708817438984,-500.0,0.00019556,2]
[315100528,1708817438994,-500.0,0.00019556,2]
[315100529,1708817439003,-500.0,0.00019556,2]
[315100530,1708817439012,-500.0,0.00019556,2]
[315100531,1708817439021,-500.0,0.00019556,2]
[315100532,1708817439030,-500.0,0.00019556,2]
[315100533,1708817439039,-1187.58,0.00019556,2]
[315100534,1708817439048,-500.0,0.00019556,2]
[315100535,1708817439058,-500.0,0.00019556,2]
[315100536,1708817439067,-682.73,0.00019556,2]
[315100537,1708817439076,-188.19,0.00019557,2]
[315100538,1708817439086,-500.0,0.00019557,2]
[315100539,1708817439096,-500.0,0.00019557,2]
[315100540,1708817439105,-500.0,0.00019557,2]
[315100541,1708817439114,-500.0,0.00019557,2]
[315100542,1708817439122,-500.0,0.00019557,2]
[315100543,1708817439131,-500.0,0.00019557,2]
[315100544,1708817439140,-500.0,0.00019557,2]
[315100545,1708817439150,-500.0,0.00019557,2]
[315100546,1708817439159,-722.61,0.00019557,2]
[315100547,1708817439169,-500.0,0.00019557,2]
[315100548,1708817439178,-500.0,0.00019557,2]
[315100549,1708817439187,-594.0737504,0.00019557,2]
[315100550,1708817439196,-585.43173339,0.00019557,2]
[315100551,1708817439206,-500.0,0.00019557,2]
[315100552,1708817439215,-500.49141179,0.00019557,2]
[315100553,1708817439224,-500.0,0.00019557,2]
[315100554,1708817439234,-737.11,0.00019557,2]
[315100555,1708817439245,-500.0,0.00019557,2]
[315100556,1708817439254,-500.55726059,0.00019557,2]
[315100557,1708817439264,-500.0,0.00019557,2]
[315100558,1708817439274,-500.0,0.00019557,2]
[315100559,1708817439285,-1426.83,0.00019557,2]
[315100560,1708817439295,-500.0,0.00019557,2]
[315100561,1708817439305,-500.0,0.00019557,2]
[315100562,1708817439314,-714.65,0.00019557,2]
[315100563,1708817439322,-500.60428601,0.00019557,2]
[315100564,1708817439331,-1303.64,0.00019557,2]
[315100565,1708817439340,-500.0,0.00019557,2]
[315100566,1708817439349,-399.08353161,0.00019557,2]
[315100567,1708817439358,-500.0,0.00019557,2]
[315100568,1708817439369,-500.0,0.00019557,2]
[315100569,1708817439380,-500.0,0.00019557,2]
[315100570,1708817439390,-500.0,0.00019557,2]
[315100571,1708817439399,-500.0,0.00019557,2]
[315100572,1708817439409,-500.0,0.00019557,2]
[315100573,1708817439418,-500.0,0.00019557,2]
[315100574,1708817439428,-570.54,0.00019557,2]
[315100575,1708817439437,-500.0,0.00019557,2]
[315100576,1708817439446,-500.0,0.00019557,2]
[315100577,1708817439455,-500.0,0.00019557,2]
[315100578,1708817439465,-500.0,0.00019557,2]
[315100579,1708817439473,-692.79,0.00019557,2]
[315100580,1708817439482,-500.0,0.00019557,2]
[315100581,1708817439491,-500.0,0.00019557,2]
[315100582,1708817439500,-500.0,0.00019557,2]
[315100583,1708817439509,-505.16096815,0.00019557,2]
[315100584,1708817439518,-756.52,0.00019557,2]
[315100585,1708817439527,-500.0,0.00019557,2]
[315100586,1708817439536,-500.0,0.00019557,2]
[315100587,1708817439545,-500.0,0.00019557,2]
[315100588,1708817439554,-240.45,0.00019557,2]
[315100589,1708817439564,-1310.12,0.00019557,2]
[315100590,1708817439572,-500.0,0.00019557,2]
[315100591,1708817439582,-500.0,0.00019557,2]
[315100592,1708817439590,-1049.88,0.00019557,2]
[315100593,1708817439599,-500.80808631,0.00019557,2]
[315100594,1708817439608,-500.0,0.00019557,2]
[315100595,1708817439618,-500.0,0.00019557,2]
[315100596,1708817439627,-573.6,0.00019557,2]
[315100597,1708817439637,-4190.78,0.00019557,2]
[315100598,1708817439646,-500.0,0.00019557,2]
[315100599,1708817439657,-500.0,0.00019557,2]
[315100600,1708817439666,-644.03515198,0.00019557,2]
[315100601,1708817439676,-500.0,0.00019557,2]
[315100602,1708817439685,-3162.29,0.00019557,2]
[315100603,1708817439694,-501.32633711,0.00019557,2]
[315100604,1708817439705,-1638.23,0.00019557,2]
[315100605,1708817439714,-500.57831314,0.00019557,2]
[315100606,1708817439723,-500.0,0.00019557,2]
[315100607,1708817439733,-500.0,0.00019557,2]
[315100608,1708817439744,-329.83424643,0.00019557,2]
[315100609,1708817439756,-4992.96,0.00019557,2]
[315100610,1708817439766,-1242.14,0.00019557,2]
[315100611,1708817439776,-198.51434703,0.00019557,2]
[315100612,1708817439786,-875.6,0.00019557,2]
[315100613,1708817439795,-500.0,0.00019557,2]
[315100614,1708817439804,-1163.87,0.00019557,2]
[315100615,1708817439814,-500.0,0.00019558,2]
[315100616,1708817439823,-500.0,0.00019558,2]
[315100617,1708817439834,-500.56299601,0.00019558,2]
[315100618,1708817439843,-500.0,0.00019558,2]
[315100619,1708817439854,-500.0,0.00019558,2]
[315100620,1708817439863,-500.0,0.00019558,2]
[315100621,1708817439872,-500.0,0.00019558,2]
[315100622,1708817439881,-737.11,0.00019558,2]
[315100623,1708817439892,-500.0,0.00019558,2]
[315100624,1708817439901,-737.11,0.00019559,2]
[315100625,1708817439910,-500.0,0.00019559,2]
[315100626,1708817439919,-153.0,0.000196,2]
[315100627,1708817439928,-153.0,0.000196,2]
[315100628,1708817439937,-153.0,0.000196,2]
[315100629,1708817439947,-153.0,0.000196,2]
[315100630,1708817439956,-153.0,0.000196,2]
[315100631,1708817439965,-153.0,0.000196,2]
[315100632,1708817439974,-153.0,0.000196,2]
[315100633,1708817439983,-306.0,0.000196,2]
[315100634,1708817439992,-166.666666,0.00019627,2]
[315100635,1708817440002,-200.5294442,0.000197,2]
[315100636,1708817440011,-200.5294442,0.000197,2]
[315100637,1708817440019,-401.0588884,0.000197,2]
[315100638,1708817440028,-153.0,0.000197,2]
[315100639,1708817440038,-412.6272426,0.000197,2]
[315100640,1708817440047,-200.5294442,0.000197,2]
[315100641,1708817440056,-173.4547871,0.00019795,2]
[315100642,1708817440066,-173.45478709,0.00019821,2]
[315100643,1708817440075,-500.0,0.0001983,2]
[315100644,1708817440084,-500.0,0.0001983,2]
[315100645,1708817440093,-750.99,0.0001983,2]
[315100646,1708817440103,-500.0,0.0001983,2]
[315100647,1708817440112,-651.18,0.0001983,2]
[315100648,1708817440121,-4855.68,0.0001983,2]
[315100649,1708817440130,-473.06117471,0.0001983,2]
[315100650,1708817440140,-5097.37,0.0001983,2]
[315100651,1708817440149,-500.0,0.0001983,2]
[315100652,1708817440157,-500.0,0.0001983,2]
[315100653,1708817440166,-500.0,0.0001983,2]
[315100654,1708817440175,-500.0,0.0001983,2]
[315100655,1708817440184,-500.0,0.0001983,2]
[315100656,1708817440193,-440.11976334,0.0001983,2]
[315100657,1708817440202,-1187.58,0.0001983,2]
[315100658,1708817440212,-500.0,0.0001983,2]
[315100659,1708817440221,-500.0,0.0001983,2]
[315100660,1708817440231,-682.73,0.0001983,2]
[315100661,1708817440240,-314.65712484,0.0001983,2]
[315100662,1708817440249,-211.74023712,0.0001983,2]
[315100663,1708817440258,-500.0,0.0001983,2]
[315100664,1708817440267,-500.0,0.0001983,2]
[315100665,1708817440276,-500.0,0.0001983,2]
[315100666,1708817440285,-309.93653303,0.0001983,2]
[315100667,1708817440294,-500.0,0.0001983,2]
[315100668,1708817440302,-500.0,0.0001983,2]
[315100669,1708817440311,-500.0,0.0001983,2]
[315100670,1708817440320,-200.3907045,0.0001983,2]
[315100671,1708817440329,-500.0,0.0001983,2]
[315100672,1708817440338,-500.0,0.0001983,2]
[315100673,1708817440348,-500.0,0.0001983,2]
[315100674,1708817440356,-500.0,0.0001983,2]
[315100675,1708817440366,-500.0,0.0001983,2]
[315100676,1708817440378,-500.0,0.0001983,2]
[315100677,1708817440388,-500.0,0.0001983,2]
[315100678,1708817440397,-500.0,0.0001983,2]
[315100679,1708817440405,-500.0,0.0001983,2]
[315100680,1708817440415,-500.0,0.0001983,2]
[315100681,1708817440424,-500.0,0.0001983,2]
[315100682,1708817440432,-500.0,0.0001983,2]
[315100683,1708817440441,-500.0,0.0001983,2]
[315100684,1708817440451,-500.0,0.0001983,2]
[315100685,1708817440461,-500.0,0.0001983,2]
[315100686,1708817440470,-500.0,0.0001983,2]
[315100687,1708817440480,-500.0,0.0001983,2]
[315100688,1708817440489,-500.0,0.0001983,2]
[315100689,1708817440498,-500.0,0.0001983,2]
[315100690,1708817440507,-500.0,0.0001983,2]
[315100691,1708817440516,-500.0,0.0001983,2]
[315100692,1708817440525,-500.0,0.0001983,2]
[315100693,1708817440534,-500.0,0.0001983,2]
[315100694,1708817440543,-226.72035585,0.0001983,2]
[315100695,1708817440552,-500.0,0.0001983,2]
[315100696,1708817440561,-500.0,0.0001983,2]
[315100697,1708817440570,-500.0,0.0001983,2]
[315100698,1708817440579,-500.0,0.0001983,2]
[315100699,1708817440589,-500.0,0.0001983,2]
[315100700,1708817440598,-500.0,0.0001983,2]
[315100701,1708817440607,-500.0,0.0001983,2]
[315100702,1708817440617,-500.0,0.0001983,2]
[315100703,1708817440626,-500.0,0.0001983,2]
[315100704,1708817440636,-500.0,0.0001983,2]
[315100705,1708817440645,-500.0,0.0001983,2]
[315100706,1708817440654,-500.0,0.0001983,2]
[315100707,1708817440664,-338.49627497,0.0001983,2]
[315100708,1708817440673,-500.0,0.0001983,2]
[315100709,1708817440683,-500.0,0.0001983,2]
[315100710,1708817440692,-500.0,0.0001983,2]
[315100711,1708817440701,-500.0,0.0001983,2]
[315100712,1708817440710,-500.0,0.0001983,2]
[315100713,1708817440719,-500.0,0.0001983,2]
[315100714,1708817440728,-500.0,0.0001983,2]
[315100715,1708817440737,-500.0,0.0001983,2]
[315100716,1708817440745,-500.0,0.0001983,2]
[315100717,1708817440755,-500.0,0.0001983,2]
[315100718,1708817440765,-500.0,0.0001983,2]
[315100719,1708817440774,-500.0,0.0001983,2]
[315100720,1708817440783,-500.0,0.0001983,2]
[315100721,1708817440792,-500.0,0.0001983,2]
[315100722,1708817440801,-500.0,0.0001983,2]
[315100723,1708817440810,-500.0,0.0001983,2]
[315100725,1708817440819,-500.0,0.0001983,2]
[315100726,1708817440829,-500.0,0.0001983,2]
[315100727,1708817440838,-500.0,0.0001983,2]
[315100728,1708817440846,-500.0,0.0001983,2]
[315100729,1708817440855,-500.0,0.0001983,2]
[315100730,1708817440864,-500.0,0.0001983,2]
[315100731,1708817440874,-500.0,0.0001983,2]
[315100732,1708817440883,-500.0,0.0001983,2]
[315100733,1708817440892,-500.0,0.0001983,2]
[315100734,1708817440901,-500.0,0.0001983,2]
[315100735,1708817440910,-500.0,0.0001983,2]
[315100736,1708817440921,-500.0,0.0001983,2]
[315100737,1708817440931,-500.0,0.0001983,2]
[315100738,1708817440940,-500.0,0.0001983,2]
[315100739,1708817440950,-500.0,0.0001983,2]
[315100740,1708817440959,-500.0,0.0001983,2]
[315100741,1708817440968,-500.0,0.0001983,2]
[315100742,1708817440977,-500.0,0.0001983,2]
[315100743,1708817440986,-500.0,0.0001983,2]
[315100744,1708817440995,-500.0,0.0001983,2]
[315100745,1708817441004,-500.0,0.0001983,2]
[315100746,1708817441013,-500.0,0.0001983,2]
[315100747,1708817441022,-500.0,0.0001983,2]
[315100748,1708817441031,-500.0,0.0001983,2]
[315100749,1708817441040,-500.0,0.0001983,2]
[315100750,1708817441049,-500.0,0.0001983,2]
[315100751,1708817441058,-500.0,0.0001983,2]
[315100752,1708817441067,-500.0,0.0001983,2]
[315100753,1708817441076,-500.0,0.0001983,2]
[315100754,1708817441085,-500.0,0.0001983,2]
[315100755,1708817441094,-500.0,0.0001983,2]
[315100756,1708817441103,-500.0,0.0001983,2]
[315100757,1708817441112,-500.0,0.0001983,2]
[315100758,1708817441121,-500.0,0.0001983,2]
[315100759,1708817441130,-500.0,0.0001983,2]
[315100760,1708817441139,-500.0,0.0001983,2]
[315100761,1708817441149,-500.0,0.0001983,2]
[315100762,1708817441157,-500.0,0.0001983,2]
[315100763,1708817441166,-500.0,0.0001983,2]
[315100764,1708817441175,-500.0,0.0001983,2]
[315100765,1708817441184,-500.0,0.0001983,2]
[315100766,1708817441193,-500.0,0.0001983,2]
[315100767,1708817441202,-547.5027825,0.0001983,2]
[315100768,1708817441212,-500.0,0.00019831,2]
[315100769,1708817441221,-500.0,0.00019831,2]
[315100770,1708817441230,-500.0,0.00019831,2]
[315100771,1708817441240,-500.0,0.00019831,2]
[315100772,1708817441248,-722.61,0.00019831,2]
[315100773,1708817441256,-500.0,0.00019831,2]
[315100774,1708817441265,-500.0,0.00019831,2]
[315100775,1708817441274,-737.11,0.00019831,2]
[315100776,1708817441283,-737.11,0.00019831,2]
[315100777,1708817441292,-737.11,0.00019831,2]
[315100778,1708817441301,-500.0,0.00019831,2]
[315100779,1708817441310,-1426.83,0.00019831,2]
[315100780,1708817441319,-500.0,0.00019831,2]
[315100781,1708817441328,-714.65,0.00019831,2]
[315100782,1708817441337,-1303.64,0.00019831,2]
[315100783,1708817441346,-500.0,0.00019831,2]
[315100784,1708817441355,-500.0,0.00019831,2]
[315100785,1708817441454,-502.33326353,0.00019831,2]
[315100786,1708817441465,-500.0,0.00019831,2]
[315100787,1708817441474,-500.0,0.00019831,2]
[315100788,1708817441483,-500.0,0.00019831,2]
[315100789,1708817441492,-500.0,0.00019831,2]
[315100790,1708817441501,-500.0,0.00019831,2]
[315100791,1708817441510,-692.79,0.00019831,2]
[315100792,1708817441520,-500.0,0.00019831,2]
[315100793,1708817441529,-500.0,0.00019831,2]
[315100794,1708817441538,-500.0,0.00019831,2]
[315100795,1708817441547,-756.52,0.00019831,2]
[315100796,1708817441555,-477.56579186,0.00019831,2]
[315100797,1708817441565,-1310.12,0.00019831,2]
[315100798,1708817441574,-554.02,0.00019831,2]
[315100799,1708817441584,-500.0,0.00019831,2]
[315100800,1708817441593,-1049.88,0.00019831,2]
[315100801,1708817441602,-500.0,0.00019831,2]
[315100802,1708817441611,-500.0,0.00019831,2]
[315100803,1708817441620,-573.6,0.00019831,2]
[315100804,1708817441629,-4190.78,0.00019831,2]
[315100805,1708817441639,-500.0,0.00019831,2]
[315100806,1708817441648,-500.0,0.00019831,2]
[315100807,1708817441657,-500.0,0.00019831,2]
[315100808,1708817441667,-3162.29,0.00019831,2]
[315100809,1708817441678,-1638.23,0.00019831,2]
[315100810,1708817441690,-500.0,0.00019831,2]
[315100811,1708817441700,-4992.96,0.00019831,2]
[315100812,1708817441709,-1242.14,0.00019831,2]
[315100813,1708817441718,-875.6,0.00019831,2]
[315100814,1708817441726,-500.0,0.00019831,2]
[315100815,1708817441735,-1163.87,0.00019831,2]
[315100816,1708817441745,-500.0,0.00019832,2]
[315100817,1708817441753,-179.23,0.00019832,2]
[315100818,1708817441762,-239.91,0.00019832,2]
[315100819,1708817441771,-500.0,0.00019832,2]
[315100820,1708817441780,-737.11,0.00019833,2]
[315100821,1708817441789,-301.8299324,0.00019836,2]
[315100822,1708817441798,-153.0,0.00019836,2]
[315100823,1708817441807,-173.45478709,0.00019848,2]
[315100824,1708817441817,-41133.41772646,0.0001985,2]
[315100825,1708817441826,-173.45478709,0.00019874,2]
[315100826,1708817441835,-72476.59984587,0.00019899,2]
[315100827,1708817441844,-999.35260013,0.00019899,2]
[315100828,1708817441853,-737.11,0.00019899,2]
[315100829,1708817441862,-737.11,0.00019899,2]
[315100830,1708817441872,-200.3649944,0.000199,2]
[315100831,1708817441881,-173.45478709,0.000199,2]
[315100832,1708817441890,-20934.36429894,0.000199,2]
[315100833,1708817441900,-200.5294442,0.000199,2]
[315100834,1708817441909,-155.10941439,0.00019998,2]
[315100835,1708817441918,-273.7273831,0.00019998,2]
[315100836,1708817441927,-1518.48968101,0.00019998,2]
[315100837,1708817441937,-737.11,0.00019998,2]
[315100838,1708817441945,-500.0,0.00019998,2]
[315100839,1708817441955,-500.0,0.00019998,2]
[315100840,1708817441964,-500.0,0.00019998,2]
[315100841,1708817441974,-500.0,0.00019998,2]
[315100842,1708817441983,-2269.04586115,0.00019998,2]
[315100843,1708817441993,-737.11,0.00019999,2]
[315100844,1708817442003,-737.11,0.00019999,2]
[315100845,1708817442012,-737.11,0.00019999,2]
[315100846,1708817442021,-737.11,0.00019999,2]
[315100847,1708817442030,-737.11,0.00019999,2]
[315100848,1708817442039,-737.11,0.00019999,2]
[315100849,1708817442048,-737.11,0.00019999,2]
[315100850,1708817442057,-737.11,0.00019999,2]
[315100851,1708817442066,-737.11,0.00019999,2]
[315100852,1708817442075,-737.11,0.00019999,2]
[315100853,1708817442084,-737.11,0.00019999,2]
[315100854,1708817442095,-737.11,0.00019999,2]
[315100855,1708817442104,-737.11,0.00019999,2]
[315100856,1708817442113,-737.23920829,0.00019999,2]
[315100857,1708817442122,-500.0,0.00019999,2]
[315100858,1708817442131,-279.3313356,0.00019999,2]
[315100859,1708817442142,-500.0,0.00019999,2]
[315100860,1708817442150,-500.0,0.00019999,2]
[315100861,1708817442159,-500.0,0.00019999,2]
[315100862,1708817442168,-500.0,0.00019999,2]
[315100863,1708817442177,-500.0,0.00019999,2]
[315100864,1708817442186,-175.95696323,0.00019999,2]
[315100865,1708817442196,-188.10839072,0.00019999,2]
[315100866,1708817442205,-661128.37184878,0.0002,2]
[315100867,1708817442222,-4755.16111151,0.0002,2]
[315100868,1708817442284,-999.91650325,0.0002,2]
[315100936,1708817446635,-154.87609912,0.0001983,2]
[315100938,1708817446645,-1238.09980289,0.0001999,3]
[315100941,1708817790719,-743.86286849,0.00018618,2]
[315100942,1708817790752,-295.56467022,0.00018619,2]
[315100943,1708817790784,-648.8193036,0.00018625,2]
[315100944,1708817790816,-176.997464,0.00019178,2]
[315100945,1708817790848,-164.84370803,0.00019456,2]
[315100946,1708817790879,-483.94546259,0.00019556,2]
[315100947,1708817790910,-551.55464271,0.00019556,2]
[315100948,1708817790942,-500.0,0.00019556,2]
[315100949,1708817790975,-4693.93,0.00019556,2]
[315100950,1708817791005,-500.0,0.00019556,2]
[315100951,1708817791046,-500.0,0.00019556,2]
[315100952,1708817791084,-500.0,0.00019556,2]
[315100953,1708817791119,-500.0,0.00019556,2]
[315100954,1708817791153,-500.0,0.00019556,2]
[315100955,1708817791187,-500.0,0.00019556,2]
[315100956,1708817791220,-500.0,0.00019556,2]
[315100957,1708817791253,-500.0,0.00019556,2]
[315100958,1708817791286,-500.0,0.00019556,2]
[315100959,1708817791319,-500.0,0.00019556,2]
[315100960,1708817791353,-500.0,0.00019556,2]
[315100961,1708817791395,-500.0,0.00019556,2]
[315100962,1708817791428,-500.0,0.00019556,2]
[315100963,1708817791462,-500.0,0.00019556,2]
[315100964,1708817791496,-500.0,0.00019556,2]
[315100965,1708817791527,-500.0,0.00019556,2]
[315100966,1708817791560,-500.0,0.00019556,2]
[315100967,1708817791593,-500.0,0.00019556,2]
[315100968,1708817791626,-550.95,0.00019556,2]
[315100969,1708817791659,-500.0,0.00019556,2]
[315100970,1708817791690,-500.0,0.00019556,2]
[315100971,1708817791721,-1436.27,0.00019556,2]
[315100972,1708817791753,-500.0,0.00019556,2]
[315100973,1708817791785,-2898.77,0.00019556,2]
[315100974,1708817791949,-500.0,0.00019556,2]
[315100975,1708817791982,-716.46,0.00019556,2]
[315100976,1708817792015,-500.0,0.00019556,2]
[315100977,1708817792048,-276.55451874,0.00019556,2]
[315100978,1708817792080,-500.0,0.00019556,2]